[Event "FIDE Grand Swiss 2023"]
[Site "Villa Marina, Douglas, Isle of Man"]
[Date "2023.10.29"]
[Round "5.30"]
[White "Kollars, Dmitrij"]
[Black "Navara, David"]
[Result "1/2-1/2"]
[WhiteElo "2633"]
[BlackElo "2689"]
[EventDate "2023.10.25"]
[ECO "C67"]
[PlyCount "68"]
[BlackFideId "309095"]
[TimeControl "40/100 + 20/50 + 15 + 30s/move"]
[WhiteFideId "12909572"]

1.e4 {[%clk 01:40:55] [%emt 00:00:04]} 1...e5 {[%clk 01:40:57] [%emt 00:00:03]} 
2.Nf3 {[%clk 01:41:11] [%emt 00:00:14]} 2...Nc6 {[%clk 01:41:23] [%emt
00:00:04]} 3.Bb5 {[%clk 01:41:07] [%emt 00:00:33]} 3...Nf6 {[%clk 01:41:48]
[%emt 00:00:06]} 4.O-O {[%clk 01:39:59] [%emt 00:01:38]} 4...Nxe4 {[%clk
01:42:10] [%emt 00:00:08]} 5.Re1 {[%clk 01:39:20] [%emt 00:01:09]} 5...Nd6 
{[%clk 01:42:31] [%emt 00:00:09]} 6.Nxe5 {[%clk 01:39:34] [%emt 00:00:16]} 
6...Be7 {[%clk 01:42:56] [%emt 00:00:06]} 7.Bf1 {[%clk 01:39:54] [%emt
00:00:08]} 7...Nxe5 {[%clk 01:43:15] [%emt 00:00:10]} 8.Rxe5 {[%clk 01:40:20]
[%emt 00:00:06]} 8...O-O {[%clk 01:43:37] [%emt 00:00:08]} 9.d4 {[%clk 01:39:08]
[%emt 00:01:42]} 9...Bf6 {[%clk 01:43:52] [%emt 00:00:15]} 10.Re2 {[%clk
01:39:07] [%emt 00:00:31]} 10...b6 {[%clk 01:43:12] [%emt 00:01:10]} 11.Re1 
{[%clk 01:38:13] [%emt 00:01:24]} 11...Bb7 {[%clk 01:43:26] [%emt 00:00:16]} 
12.Bf4 {[%clk 01:37:00] [%emt 00:01:42]} 12...Ne4 {[%clk 01:43:36] [%emt
00:00:21]} 13.Nd2 {[%clk 01:35:40] [%emt 00:01:51]} 13...Re8 {[%clk 01:39:39]
[%emt 00:04:27]} 14.Bd3 {[%clk 01:30:40] [%emt 00:05:29]} 14...Nxd2 {[%clk
01:36:46] [%emt 00:03:23]} 15.Qxd2 {[%clk 01:30:04] [%emt 00:01:07]} 15...d6 
{[%clk 01:33:33] [%emt 00:03:42]} 16.c3 {[%clk 01:19:17] [%emt 00:11:17]} 
16...Qd7 {[%clk 01:33:00] [%emt 00:01:03]} 17.h3 {[%clk 01:19:17] [%emt
00:00:30]} 17...Rxe1+ {[%clk 01:31:37] [%emt 00:01:53]} 18.Rxe1 {[%clk 01:19:40]
[%emt 00:00:08]} 18...Re8 {[%clk 01:31:57] [%emt 00:00:09]} 19.a3 {[%clk
01:16:55] [%emt 00:03:16]} 19...Rxe1+ {[%clk 01:30:08] [%emt 00:02:18]} 20.Qxe1 
{[%clk 01:17:20] [%emt 00:00:04]} 20...Qe6 {[%clk 01:30:15] [%emt 00:00:23]} 
21.Qe2 {[%clk 01:14:45] [%emt 00:03:05]} 21...Qxe2 {[%clk 01:29:53] [%emt
00:00:53]} 22.Bxe2 {[%clk 01:15:12] [%emt 00:00:03]} 22...h6 {[%clk 01:29:13]
[%emt 00:01:10]} 23.f3 {[%clk 01:13:58] [%emt 00:01:45]} 23...Bg5 {[%clk
01:28:48] [%emt 00:00:55]} 24.Bxg5 {[%clk 01:14:17] [%emt 00:00:11]} 24...hxg5 
{[%clk 01:29:11] [%emt 00:00:06]} 25.Kf2 {[%clk 01:14:22] [%emt 00:00:25]} 
25...f5 {[%clk 01:27:46] [%emt 00:01:55]} 26.Bc4+ {[%clk 01:12:27] [%emt
00:02:24]} 26...Kf8 {[%clk 01:26:50] [%emt 00:01:27]} 27.Ke3 {[%clk 01:11:02]
[%emt 00:01:54]} 27...f4+ {[%clk 01:26:17] [%emt 00:01:04]} 28.Ke2 {[%clk
01:10:58] [%emt 00:00:34]} 28...Ke7 {[%clk 01:26:27] [%emt 00:00:20]} 29.b4 
{[%clk 01:08:35] [%emt 00:02:53]} 29...Kf6 {[%clk 01:26:26] [%emt 00:00:31]} 
30.Kf2 {[%clk 01:07:52] [%emt 00:01:14]} 30...c5 {[%clk 01:25:43] [%emt
00:01:12]} 31.Ke2 {[%clk 01:07:26] [%emt 00:00:56]} 31...Bc6 {[%clk 01:24:09]
[%emt 00:02:05]} 32.Kf2 {[%clk 01:07:04] [%emt 00:00:51]} 32...Bd7 {[%clk
01:23:48] [%emt 00:00:51]} 33.Ke2 {[%clk 01:07:00] [%emt 00:00:34]} 33...Bc6 
{[%clk 01:24:13] [%emt 00:00:06]} 34.Kf2 {[%clk 01:07:25] [%emt 00:00:05]} 
34...Bd7 {[%clk 01:24:38] [%emt 00:00:05]} 1/2-1/2

[Event "FIDE Grand Swiss 2023"]
[Site "Villa Marina, Douglas, Isle of Man"]
[Date "2023.10.29"]
[Round "5.31"]
[White "Sargsyan, Shant"]
[Black "Tabatabaei, M. Amin"]
[Result "1/2-1/2"]
[WhiteElo "2631"]
[BlackElo "2685"]
[EventDate "2023.10.25"]
[ECO "D43"]
[PlyCount "97"]
[BlackFideId "12521213"]
[TimeControl "40/100 + 20/50 + 15 + 30s/move"]
[WhiteFideId "13306766"]

1.d4 {[%clk 01:39:30] [%emt 00:01:28]} 1...d5 {[%clk 01:40:32] [%emt 00:00:29]} 
2.c4 {[%clk 01:39:34] [%emt 00:00:26]} 2...e6 {[%clk 01:40:55] [%emt 00:00:07]} 
3.Nf3 {[%clk 01:39:52] [%emt 00:00:12]} 3...Nf6 {[%clk 01:41:16] [%emt
00:00:09]} 4.Nc3 {[%clk 01:40:15] [%emt 00:00:07]} 4...c6 {[%clk 01:41:40] [%emt
00:00:06]} 5.Bg5 {[%clk 01:40:06] [%emt 00:00:39]} 5...h6 {[%clk 01:41:00] [%emt
00:01:10]} 6.Bxf6 {[%clk 01:40:23] [%emt 00:00:13]} 6...Qxf6 {[%clk 01:41:21]
[%emt 00:00:08]} 7.e3 {[%clk 01:40:49] [%emt 00:00:05]} 7...g6 {[%clk 01:40:32]
[%emt 00:01:18]} 8.Bd3 {[%clk 01:40:19] [%emt 00:01:00]} 8...Bg7 {[%clk
01:40:09] [%emt 00:00:53]} 9.O-O {[%clk 01:40:13] [%emt 00:00:36]} 9...O-O 
{[%clk 01:40:18] [%emt 00:00:21]} 10.e4 {[%clk 01:40:11] [%emt 00:00:33]} 
10...Qd8 {[%clk 01:39:59] [%emt 00:00:49]} 11.cxd5 {[%clk 01:38:08] [%emt
00:02:33]} 11...exd5 {[%clk 01:40:16] [%emt 00:00:13]} 12.e5 {[%clk 01:38:33]
[%emt 00:00:05]} 12...c5 {[%clk 01:38:14] [%emt 00:02:32]} 13.dxc5 {[%clk
01:38:31] [%emt 00:00:32]} 13...Nc6 {[%clk 01:25:06] [%emt 00:13:38]} 14.Rc1 
{[%clk 01:37:06] [%emt 00:01:55]} 14...Bg4 {[%clk 01:13:50] [%emt 00:11:45]} 
15.Be2 {[%clk 01:29:53] [%emt 00:07:44]} 15...Be6 {[%clk 01:13:07] [%emt
00:01:13]} 16.Qd2 {[%clk 01:15:25] [%emt 00:14:58]} 16...Nxe5 {[%clk 01:12:22]
[%emt 00:01:15]} 17.Nxe5 {[%clk 01:03:11] [%emt 00:12:44]} 17...Bxe5 {[%clk
01:12:40] [%emt 00:00:12]} 18.g3 {[%clk 01:03:09] [%emt 00:00:33]} 18...d4 
{[%clk 01:05:43] [%emt 00:07:26]} 19.Ne4 {[%clk 01:01:43] [%emt 00:01:56]} 
19...Bxa2 {[%clk 01:02:19] [%emt 00:03:54]} 20.Bd3 {[%clk 00:51:00] [%emt
00:11:13]} 20...Bg7 {[%clk 00:59:35] [%emt 00:03:14]} 21.b4 {[%clk 00:48:03]
[%emt 00:03:27]} 21...Bd5 {[%clk 00:59:14] [%emt 00:00:51]} 22.Nd6 {[%clk
00:47:11] [%emt 00:01:22]} 22...a5 {[%clk 00:32:52] [%emt 00:26:52]} 23.bxa5 
{[%clk 00:45:56] [%emt 00:01:45]} 23...Qxa5 {[%clk 00:32:58] [%emt 00:00:23]} 
24.Qf4 {[%clk 00:43:36] [%emt 00:02:51]} 24...Qc7 {[%clk 00:29:38] [%emt
00:03:49]} 25.Be4 {[%clk 00:36:14] [%emt 00:07:53]} 25...Qc6 {[%clk 00:28:38]
[%emt 00:01:30]} 26.Rb1 {[%clk 00:24:37] [%emt 00:12:08]} 26...Bxe4 {[%clk
00:26:01] [%emt 00:03:07]} 27.Qxe4 {[%clk 00:24:55] [%emt 00:00:12]} 27...Qxc5 
{[%clk 00:25:01] [%emt 00:01:29]} 28.Nxb7 {[%clk 00:25:06] [%emt 00:00:20]} 
28...Qa3 {[%clk 00:25:11] [%emt 00:00:20]} 29.Qd5 {[%clk 00:24:30] [%emt
00:01:06]} 29...Qa2 {[%clk 00:16:23] [%emt 00:09:16]} 30.Qxa2 {[%clk 00:22:49]
[%emt 00:02:13]} 30...Rxa2 {[%clk 00:16:50] [%emt 00:00:02]} 31.Nc5 {[%clk
00:23:00] [%emt 00:00:19]} 31...Rc8 {[%clk 00:16:44] [%emt 00:00:35]} 32.Nd3 
{[%clk 00:22:05] [%emt 00:01:26]} 32...Rd2 {[%clk 00:13:02] [%emt 00:04:12]} 
33.Rfd1 {[%clk 00:21:42] [%emt 00:00:54]} 33...Rxd1+ {[%clk 00:13:11] [%emt
00:00:21]} 34.Rxd1 {[%clk 00:22:11] [%emt 00:00:01]} 34...Kf8 {[%clk 00:11:43]
[%emt 00:01:58]} 35.Kf1 {[%clk 00:21:19] [%emt 00:01:21]} 35...Rc3 {[%clk
00:09:43] [%emt 00:02:30]} 36.Ke2 {[%clk 00:19:36] [%emt 00:02:13]} 36...Rc2+ 
{[%clk 00:09:42] [%emt 00:00:31]} 37.Rd2 {[%clk 00:14:10] [%emt 00:05:56]} 
37...Rc7 {[%clk 00:09:21] [%emt 00:00:51]} 38.Ra2 {[%clk 00:14:00] [%emt
00:00:40]} 38...h5 {[%clk 00:09:03] [%emt 00:00:48]} 39.h3 {[%clk 00:11:29]
[%emt 00:03:02]} 39...Re7+ {[%clk 00:08:56] [%emt 00:00:37]} 40.Kf3 {[%clk
00:11:22] [%emt 00:00:35]} 40...Bf6 {[%clk 00:08:52] [%emt 00:00:35]} 41.Ra5 
{[%clk 00:08:19] [%emt 00:03:33]} 41...Rb7 {[%clk 00:09:05] [%emt 00:00:15]} 
42.g4 {[%clk 00:06:41] [%emt 00:02:10]} 42...h4 {[%clk 00:06:20] [%emt
00:03:15]} 43.g5 {[%clk 00:40:58] [%emt 00:16:13]} 43...Be7 {[%clk 00:55:57]
[%emt 00:00:51]} 44.Rd5 {[%clk 00:34:32] [%emt 00:06:58]} 44...Rb3 {[%clk
00:33:45] [%emt 00:22:42]} 45.Ke2 {[%clk 00:27:26] [%emt 00:07:36]} 45...Rb1 
{[%clk 00:30:50] [%emt 00:03:25]} 46.Ne1 {[%clk 00:23:27] [%emt 00:04:29]} 
46...Rb2+ {[%clk 00:27:40] [%emt 00:03:40]} 47.Kf1 {[%clk 00:21:49] [%emt
00:02:07]} 47...Rb1 {[%clk 00:14:50] [%emt 00:13:21]} 48.Ke2 {[%clk 00:21:37]
[%emt 00:00:41]} 48...Rb2+ {[%clk 00:05:04] [%emt 00:10:17]} 49.Kf1 {[%clk
00:22:01] [%emt 00:00:06]} 1/2-1/2

[Event "FIDE Grand Swiss 2023"]
[Site "Villa Marina, Douglas, Isle of Man"]
[Date "2023.10.29"]
[Round "5.32"]
[White "Svane, Frederik"]
[Black "Abasov, Nijat"]
[Result "1/2-1/2"]
[WhiteElo "2626"]
[BlackElo "2679"]
[EventDate "2023.10.25"]
[ECO "B15"]
[PlyCount "61"]
[BlackFideId "13402960"]
[TimeControl "40/100 + 20/50 + 15 + 30s/move"]
[WhiteFideId "12923044"]

1.e4 {[%clk 01:40:57] [%emt 00:00:03]} 1...c6 {[%clk 01:40:56] [%emt 00:00:04]} 
2.d4 {[%clk 01:41:19] [%emt 00:00:08]} 2...d5 {[%clk 01:41:23] [%emt 00:00:02]} 
3.Nc3 {[%clk 01:41:43] [%emt 00:00:07]} 3...dxe4 {[%clk 01:41:46] [%emt
00:00:07]} 4.Nxe4 {[%clk 01:42:08] [%emt 00:00:05]} 4...Nf6 {[%clk 01:41:52]
[%emt 00:00:24]} 5.Nxf6+ {[%clk 01:42:32] [%emt 00:00:06]} 5...exf6 {[%clk
01:42:18] [%emt 00:00:03]} 6.c3 {[%clk 01:42:57] [%emt 00:00:06]} 6...Bd6 
{[%clk 01:42:42] [%emt 00:00:05]} 7.Bd3 {[%clk 01:43:23] [%emt 00:00:04]} 
7...O-O {[%clk 01:43:02] [%emt 00:00:11]} 8.Ne2 {[%clk 01:43:49] [%emt
00:00:04]} 8...Re8 {[%clk 01:43:08] [%emt 00:00:23]} 9.Qc2 {[%clk 01:44:14]
[%emt 00:00:05]} 9...h5 {[%clk 01:43:31] [%emt 00:00:07]} 10.O-O {[%clk
01:44:38] [%emt 00:00:06]} 10...Qc7 {[%clk 01:42:49] [%emt 00:01:12]} 11.h3 
{[%clk 01:37:41] [%emt 00:07:27]} 11...c5 {[%clk 01:43:13] [%emt 00:00:06]} 
12.dxc5 {[%clk 01:33:27] [%emt 00:04:44]} 12...Qxc5 {[%clk 01:42:01] [%emt
00:01:42]} 13.b4 {[%clk 01:20:20] [%emt 00:13:38]} 13...Qc7 {[%clk 01:41:49]
[%emt 00:00:41]} 14.Nd4 {[%clk 01:19:34] [%emt 00:01:16]} 14...a6 {[%clk
01:36:42] [%emt 00:05:38]} 15.Bd2 {[%clk 01:16:36] [%emt 00:03:28]} 15...Nc6 
{[%clk 01:29:43] [%emt 00:07:28]} 16.Nxc6 {[%clk 01:12:55] [%emt 00:04:12]} 
16...Qxc6 {[%clk 01:28:49] [%emt 00:01:24]} 17.Rfe1 {[%clk 01:06:38] [%emt
00:06:47]} 17...Be6 {[%clk 01:28:31] [%emt 00:00:48]} 18.Bh7+ {[%clk 01:02:44]
[%emt 00:04:23]} 18...Kf8 {[%clk 01:13:03] [%emt 00:15:58]} 19.Be4 {[%clk
00:40:34] [%emt 00:22:40]} 19...Qc7 {[%clk 01:12:18] [%emt 00:01:15]} 20.Rac1 
{[%clk 00:38:33] [%emt 00:02:32]} 20...Rad8 {[%clk 01:10:16] [%emt 00:02:32]} 
21.c4 {[%clk 00:35:02] [%emt 00:04:02]} 21...Bh2+ {[%clk 00:59:29] [%emt
00:11:16]} 22.Kh1 {[%clk 00:35:02] [%emt 00:00:29]} 22...Rxd2 {[%clk 00:59:54]
[%emt 00:00:05]} 23.Qxd2 {[%clk 00:35:28] [%emt 00:00:05]} 23...Bf4 {[%clk
01:00:17] [%emt 00:00:07]} 24.Qc2 {[%clk 00:32:57] [%emt 00:03:01]} 24...Bxc1 
{[%clk 00:59:33] [%emt 00:01:14]} 25.Rxc1 {[%clk 00:33:22] [%emt 00:00:05]} 
25...Rd8 {[%clk 00:58:49] [%emt 00:01:13]} 26.Rd1 {[%clk 00:21:08] [%emt
00:12:45]} 26...Rxd1+ {[%clk 00:56:43] [%emt 00:02:36]} 27.Qxd1 {[%clk 00:19:38]
[%emt 00:02:00]} 27...g6 {[%emt 00:15:02]} 28.Qd4 {[%clk 00:08:51]} 28...Qxc4 
{[%clk 00:50:10]} 29.Qxc4 {[%clk 00:09:18] [%emt 00:03:52]} 29...Bxc4 {[%clk
00:50:32] [%emt 00:00:07]} 30.Bxb7 {[%clk 00:09:45] [%emt 00:00:03]} 30...Ke7 
{[%clk 00:50:52] [%emt 00:00:09]} 31.f4 {[%clk 00:07:53] [%emt 00:02:22]} 1/2-1/2

[Event "FIDE Grand Swiss 2023"]
[Site "Villa Marina, Douglas, Isle of Man"]
[Date "2023.10.29"]
[Round "5.33"]
[White "Durarbayli, Vasif"]
[Black "Matlakov, Maxim"]
[Result "1/2-1/2"]
[WhiteElo "2625"]
[BlackElo "2674"]
[EventDate "2023.10.25"]
[ECO "C50"]
[PlyCount "109"]
[BlackFideId "4168003"]
[TimeControl "40/100 + 20/50 + 15 + 30s/move"]
[WhiteFideId "13402935"]

1.e4 {[%clk 01:40:57] [%emt 00:00:03]} 1...e5 {[%clk 01:40:43] [%emt 00:00:18]} 
2.Nf3 {[%clk 01:41:16] [%emt 00:00:10]} 2...Nc6 {[%clk 01:41:07] [%emt
00:00:06]} 3.Bc4 {[%clk 01:41:27] [%emt 00:00:20]} 3...Nf6 {[%clk 01:41:21]
[%emt 00:00:16]} 4.d3 {[%clk 01:41:37] [%emt 00:00:20]} 4...Bc5 {[%clk 01:41:41]
[%emt 00:00:10]} 5.O-O {[%clk 01:41:21] [%emt 00:00:45]} 5...d6 {[%clk 01:41:42]
[%emt 00:00:30]} 6.c3 {[%clk 01:41:33] [%emt 00:00:17]} 6...a5 {[%clk 01:41:50]
[%emt 00:00:22]} 7.Re1 {[%clk 01:41:44] [%emt 00:00:18]} 7...O-O {[%clk
01:42:00] [%emt 00:00:22]} 8.h3 {[%clk 01:41:53] [%emt 00:00:20]} 8...Be6 
{[%clk 01:41:45] [%emt 00:00:46]} 9.Bb5 {[%clk 01:40:28] [%emt 00:01:55]} 
9...Ba7 {[%clk 01:41:43] [%emt 00:00:32]} 10.Be3 {[%clk 01:40:37] [%emt
00:00:21]} 10...Bxe3 {[%clk 01:40:59] [%emt 00:01:14]} 11.Rxe3 {[%clk 01:40:54]
[%emt 00:00:12]} 11...Ne7 {[%clk 01:40:51] [%emt 00:00:38]} 12.d4 {[%clk
01:40:47] [%emt 00:00:37]} 12...Ng6 {[%clk 01:41:04] [%emt 00:00:18]} 13.Bf1 
{[%clk 01:40:51] [%emt 00:00:25]} 13...h5 {[%clk 01:38:21] [%emt 00:03:13]} 
14.c4 {[%clk 01:40:54] [%emt 00:00:27]} 14...Nh7 {[%clk 01:36:48] [%emt
00:02:04]} 15.Nc3 {[%clk 01:41:09] [%emt 00:00:14]} 15...Ng5 {[%clk 01:34:44]
[%emt 00:02:35]} 16.Nxg5 {[%clk 01:41:22] [%emt 00:00:17]} 16...Qxg5 {[%clk
01:35:06] [%emt 00:00:07]} 17.Rg3 {[%clk 01:41:44] [%emt 00:00:08]} 17...Qh4 
{[%clk 01:31:13] [%emt 00:04:24]} 18.a3 {[%clk 01:41:39] [%emt 00:00:34]} 
18...Rad8 {[%clk 01:17:17] [%emt 00:14:26]} 19.Rc1 {[%clk 01:30:42] [%emt
00:11:27]} 19...Nf4 {[%clk 01:02:23] [%emt 00:15:25]} 20.Nd5 {[%clk 01:13:54]
[%emt 00:17:18]} 20...c6 {[%clk 00:59:26] [%emt 00:03:28]} 21.Nxf4 {[%clk
01:13:20] [%emt 00:01:03]} 21...Qxf4 {[%clk 00:59:26] [%emt 00:00:29]} 22.d5 
{[%clk 01:13:19] [%emt 00:00:31]} 22...Bd7 {[%clk 00:52:12] [%emt 00:07:40]} 
23.Re3 {[%clk 01:10:10] [%emt 00:03:43]} 23...h4 {[%clk 00:32:11] [%emt
00:20:32]} 24.Qb3 {[%clk 00:58:25] [%emt 00:12:15]} 24...Qg5 {[%clk 00:24:39]
[%emt 00:08:02]} 25.Rd1 {[%clk 00:51:49] [%emt 00:07:05]} 25...c5 {[%clk
00:24:14] [%emt 00:00:56]} 26.a4 {[%clk 00:40:33] [%emt 00:11:46]} 26...Qe7 
{[%clk 00:20:04] [%emt 00:04:40]} 27.Be2 {[%clk 00:37:51] [%emt 00:03:12]} 
27...Ra8 {[%clk 00:14:26] [%emt 00:06:07]} 28.Rf1 {[%clk 00:37:03] [%emt
00:01:18]} 28...b6 {[%clk 00:11:26] [%emt 00:03:31]} 29.Kh2 {[%clk 00:34:59]
[%emt 00:02:33]} 29...g6 {[%clk 00:08:58] [%emt 00:02:58]} 30.Bd1 {[%clk
00:34:39] [%emt 00:00:50]} 30...Rab8 {[%clk 00:05:49] [%emt 00:03:40]} 31.Bc2 
{[%clk 00:33:41] [%emt 00:01:27]} 31...Qg5 {[%clk 00:05:40] [%emt 00:00:39]} 
32.Kh1 {[%clk 00:33:00] [%emt 00:01:11]} 32...f5 {[%clk 00:04:21] [%emt
00:01:49]} 33.exf5 {[%clk 00:33:06] [%emt 00:00:24]} 33...Bxf5 {[%clk 00:02:36]
[%emt 00:02:16]} 34.Bxf5 {[%clk 00:31:44] [%emt 00:01:52]} 34...Rxf5 {[%clk
00:02:53] [%emt 00:00:12]} 35.Re4 {[%clk 00:30:02] [%emt 00:02:12]} 35...Rf4 
{[%clk 00:02:52] [%emt 00:00:32]} 36.Rxf4 {[%clk 00:26:34] [%emt 00:03:57]} 
36...Qxf4 {[%clk 00:03:16] [%emt 00:00:06]} 37.Kg1 {[%clk 00:26:53] [%emt
00:00:11]} 37...Kg7 {[%clk 00:03:01] [%emt 00:00:45]} 38.f3 {[%clk 00:23:26]
[%emt 00:03:58]} 38...g5 {[%clk 00:01:13] [%emt 00:02:17]} 39.Qb5 {[%clk
00:22:40] [%emt 00:01:16]} 39...Qf7 {[%clk 00:01:22] [%emt 00:00:21]} 40.Qc6 
{[%clk 00:22:01] [%emt 00:01:10]} 40...Qe7 {[%clk 00:01:07] [%emt 00:00:45]} 
41.Re1 {[%clk 00:19:30] [%emt 00:03:01]} 41...Qd8 {[%clk 00:49:24] [%emt
00:02:12]} 42.Qb5 {[%clk 01:06:51] [%emt 00:03:09]} 42...Qc7 {[%clk 00:41:44]
[%emt 00:08:11]} 43.Re3 {[%clk 01:00:15] [%emt 00:07:05]} 43...Kf6 {[%clk
00:35:14] [%emt 00:07:00]} 44.Kf2 {[%clk 00:59:41] [%emt 00:01:04]} 44...Ke7 
{[%clk 00:28:38] [%emt 00:07:05]} 45.Re4 {[%clk 00:59:12] [%emt 00:01:00]} 
45...Rf8 {[%clk 00:25:22] [%emt 00:03:46]} 46.Rg4 {[%clk 00:58:41] [%emt
00:01:01]} 46...Kf6 {[%clk 00:24:31] [%emt 00:01:22]} 47.Ke2 {[%clk 00:56:34]
[%emt 00:02:37]} 47...Kg6 {[%clk 00:24:18] [%emt 00:00:42]} 48.Re4 {[%clk
00:53:28] [%emt 00:03:37]} 48...Kf6 {[%clk 00:21:43] [%emt 00:03:04]} 49.Kd2 
{[%clk 00:48:11] [%emt 00:05:48]} 49...Kg6 {[%clk 00:18:14] [%emt 00:03:58]} 
50.Ke2 {[%clk 00:39:07] [%emt 00:09:34]} 50...Rf4 {[%clk 00:14:46] [%emt
00:03:58]} 51.Qe8+ {[%clk 00:37:54] [%emt 00:01:43]} 51...Qf7 {[%clk 00:15:09]
[%emt 00:00:07]} 52.Qd8 {[%clk 00:22:56] [%emt 00:15:29]} 52...Rxe4+ {[%clk
00:15:12] [%emt 00:00:26]} 53.fxe4 {[%clk 00:23:22] [%emt 00:00:04]} 53...Qf4 
{[%clk 00:15:34] [%emt 00:00:09]} 54.Qg8+ {[%clk 00:23:21] [%emt 00:00:30]} 
54...Kh6 {[%clk 00:15:32] [%emt 00:00:32]} 55.Qe6+ {[%clk 00:23:43] [%emt
00:00:07]} 1/2-1/2

[Event "FIDE Grand Swiss 2023"]
[Site "Villa Marina, Douglas, Isle of Man"]
[Date "2023.10.29"]
[Round "5.34"]
[White "Bluebaum, Matthias"]
[Black "Dardha, Daniel"]
[Result "1-0"]
[WhiteElo "2668"]
[BlackElo "2580"]
[EventDate "2023.10.25"]
[ECO "A11"]
[PlyCount "63"]
[BlackFideId "240990"]
[TimeControl "40/100 + 20/50 + 15 + 30s/move"]
[WhiteFideId "24651516"]

1.c4 {[%clk 01:40:57] [%emt 00:00:02]} 1...c6 {[%clk 01:39:38] [%emt 00:01:23]} 
2.Nf3 {[%clk 01:41:01] [%emt 00:00:25]} 2...d5 {[%clk 01:39:43] [%emt 00:00:26]} 
3.e3 {[%clk 01:41:24] [%emt 00:00:06]} 3...Nf6 {[%clk 01:39:52] [%emt 00:00:21]} 
4.Qc2 {[%clk 01:40:56] [%emt 00:00:59]} 4...a6 {[%clk 01:34:01] [%emt 00:06:21]} 
5.Nc3 {[%clk 01:39:59] [%emt 00:01:26]} 5...e6 {[%clk 01:31:35] [%emt 00:02:56]} 
6.d4 {[%clk 01:39:03] [%emt 00:01:26]} 6...c5 {[%clk 01:27:27] [%emt 00:04:39]} 
7.cxd5 {[%clk 01:38:01] [%emt 00:01:32]} 7...exd5 {[%clk 01:27:44] [%emt
00:00:13]} 8.Be2 {[%clk 01:38:18] [%emt 00:00:12]} 8...Nc6 {[%clk 01:27:46]
[%emt 00:00:27]} 9.O-O {[%clk 01:38:21] [%emt 00:00:28]} 9...cxd4 {[%clk
01:27:04] [%emt 00:01:13]} 10.Nxd4 {[%clk 01:38:01] [%emt 00:00:50]} 10...Bd6 
{[%clk 01:18:00] [%emt 00:09:33]} 11.Nxc6 {[%clk 01:09:50] [%emt 00:28:41]} 
11...bxc6 {[%clk 01:18:24] [%emt 00:00:06]} 12.Nxd5 {[%clk 01:09:30] [%emt
00:00:51]} 12...Bxh2+ {[%clk 01:01:25] [%emt 00:17:28]} 13.Kxh2 {[%clk 01:09:36]
[%emt 00:00:24]} 13...cxd5 {[%clk 01:01:21] [%emt 00:00:35]} 14.Qa4+ {[%clk
00:57:07] [%emt 00:12:58]} 14...Bd7 {[%clk 01:01:18] [%emt 00:00:33]} 15.Qf4 
{[%clk 00:56:45] [%emt 00:00:53]} 15...Bb5 {[%clk 00:59:23] [%emt 00:02:25]} 
16.Bxb5+ {[%clk 00:53:57] [%emt 00:03:18]} 16...axb5 {[%clk 00:59:48] [%emt
00:00:05]} 17.b3 {[%clk 00:54:21] [%emt 00:00:06]} 17...O-O {[%clk 00:56:02]
[%emt 00:04:15]} 18.Bb2 {[%clk 00:54:12] [%emt 00:00:40]} 18...Ra6 {[%clk
00:56:20] [%emt 00:00:11]} 19.Kg1 {[%clk 00:46:29] [%emt 00:08:13]} 19...Qe7 
{[%clk 00:54:53] [%emt 00:01:57]} 20.a4 {[%clk 00:45:06] [%emt 00:01:54]} 
20...b4 {[%clk 00:47:02] [%emt 00:08:21]} 21.Rac1 {[%clk 00:43:21] [%emt
00:02:15]} 21...Ne4 {[%clk 00:46:24] [%emt 00:01:08]} 22.Rfd1 {[%clk 00:40:01]
[%emt 00:03:49]} 22...Qe6 {[%clk 00:39:15] [%emt 00:07:39]} 23.Qe5 {[%clk
00:35:32] [%emt 00:05:00]} 23...Nc3 {[%clk 00:36:47] [%emt 00:02:57]} 24.Bxc3 
{[%clk 00:33:35] [%emt 00:02:27]} 24...bxc3 {[%clk 00:37:11] [%emt 00:00:05]} 
25.Qxc3 {[%clk 00:32:39] [%emt 00:01:28]} 25...h5 {[%clk 00:36:21] [%emt
00:01:20]} 26.Qd4 {[%clk 00:28:12] [%emt 00:04:56]} 26...Rb8 {[%clk 00:35:30]
[%emt 00:01:20]} 27.Rc3 {[%clk 00:28:15] [%emt 00:00:28]} 27...Ra5 {[%clk
00:34:10] [%emt 00:01:50]} 28.Qf4 {[%clk 00:24:45] [%emt 00:04:00]} 28...Rd8 
{[%clk 00:31:18] [%emt 00:03:21]} 29.Qg5 {[%clk 00:23:22] [%emt 00:01:55]} 
29...Rda8 {[%clk 00:28:48] [%emt 00:03:00]} 30.Rd4 {[%clk 00:23:29] [%emt
00:00:22]} 30...g6 {[%clk 00:28:43] [%emt 00:00:36]} 31.Rc7 {[%clk 00:19:18]
[%emt 00:04:41]} 31...Rb8 {[%clk 00:26:01] [%emt 00:03:11]} 32.Rf4 {[%clk
00:18:26] [%emt 00:01:22]} 1-0